bitfinex-derivatives/quotes_SOLF0:USTF0_20250424
["timestamp","ask_amount","ask_price","bid_price","bid_amount"]
[1745489991816,6.8102,146.82,146.8,13.58802346]
[1745489992021,6.77712346,146.85,146.8,13.58802346]
[1745489992321,6.77712346,146.83,146.79,6.77712346]
[1745489992522,6.77712346,146.81,146.77,6.77712346]
[1745489993225,13.58802346,146.81,146.78,6.8118]
[1745489995017,13.58802346,146.81,146.78,6.812]
[1745489995718,6.8104,146.82,146.78,6.77712346]
[1745489995919,6.8104,146.82,146.79,6.77712346]
[1745489996523,6.77712346,146.84,146.8,6.77712346]
[1745489996716,6.77712346,146.85,146.81,6.77712346]
[1745489997025,6.8079,146.87,146.84,13.58612346]
[1745489997826,6.8084,146.86,146.84,6.809]
[1745489998121,6.77712346,146.87,146.84,6.809]
[1745489998831,13.58532346,146.87,146.84,6.809]
[1745490000826,6.8082,146.87,146.84,13.58612346]
[1745490001826,3.6618,146.87,146.86,6.77712346]
[1745490002020,64.5315717,146.94,146.86,6.77712346]
[1745490002223,64.5315717,146.96,146.93,6.77712346]
[1745490002428,64.5315717,146.96,146.95,6.77712346]
[1745490004325,64.5315717,146.96,146.95,13.58132346]
[1745490004830,64.5315717,146.96,146.95,6.77712346]
[1745490005530,13.57992346,146.98,146.95,13.58132346]
[1745490005731,6.8035,146.97,146.93,6.77712346]
[1745490006033,6.77712346,146.98,146.94,6.8046]
[1745490006330,13.58012346,146.98,146.94,6.8046]
[1745490006930,6.8033,146.97,146.94,6.8046]
[1745490007133,6.77712346,146.95,146.93,6.805]
[1745490007335,6.77712346,146.94,146.93,6.805]
[1745490007523,6.77712346,146.95,146.93,6.805]
[1745490007726,6.77712346,146.96,146.94,6.8046]
[1745490008024,6.77712346,146.96,146.92,6.77712346]
[1745490008232,6.77712346,146.96,146.94,6.8045]
[1745490008931,6.77712346,146.98,146.95,6.804]
[1745490009333,13.58032346,146.98,146.95,6.804]
[1745490009634,6.77712346,146.99,146.96,6.8037]
[1745490010024,13.57972346,146.99,146.95,13.58112346]
[1745490010634,6.8026,146.99,146.95,13.58112346]
[1745490010933,6.8028,146.98,146.95,13.58112346]
[1745490011133,6.77712346,146.99,146.95,13.58112346]
[1745490011334,3.9947,147.0,146.96,13.58052346]
[1745490011535,10.7969,147.0,146.96,13.58052346]
[1745490011734,3.9947,147.0,146.96,13.58052346]
[1745490012337,10.77182346,147.0,146.95,13.58122346]
[1745490012535,6.77712346,146.98,146.93,6.77712346]
[1745490012740,6.8035,146.97,146.93,6.77712346]
[1745490012936,6.8035,146.97,146.93,13.58182346]
[1745490013237,6.8035,146.97,146.93,6.77712346]
[1745490013438,6.8035,146.97,146.93,13.58202346]
[1745490013641,6.8035,146.97,146.93,6.77712346]
[1745490014030,13.58012346,146.98,146.94,6.8044]
[1745490014235,13.58012346,146.98,146.94,13.58152346]
[1745490014433,6.77712346,146.99,146.94,6.77712346]
[1745490014728,10.77182346,147.0,146.95,6.77712346]
[1745490016040,6.8031,146.98,146.95,13.58092346]
[1745490016537,10.77182346,147.0,146.95,6.77712346]
[1745490016739,6.8028,146.99,146.96,6.8035]
[1745490017936,6.803,146.98,146.95,13.58112346]
[1745490018136,6.803,146.98,146.95,6.77712346]
[1745490019337,6.803,146.98,146.96,6.8037]
[1745490020436,6.803,146.98,146.95,13.58102346]
[1745490022041,6.8037,146.97,146.86,13.6164]
[1745490022242,6.8037,146.97,146.93,6.77712346]
[1745490022842,6.8037,146.97,146.94,6.8044]
[1745490023436,6.8037,146.97,146.94,13.58152346]
[1745490023837,6.8037,146.96,146.94,13.58152346]
[1745490024541,6.8037,146.96,146.94,6.77712346]
[1745490025939,6.8037,146.96,146.94,13.58172346]
[1745490026942,6.8037,146.96,146.94,6.77712346]
[1745490027241,6.8037,146.96,146.93,13.58202346]
[1745490027435,6.8037,146.96,146.93,6.77712346]
[1745490028243,6.8037,146.96,146.94,6.8046]
[1745490028542,6.8035,146.97,146.94,6.8046]
[1745490029245,6.8037,146.96,146.94,6.8046]
[1745490029749,3.1604583,147.05,146.95,6.77712346]
[1745490029941,6.77712346,147.01,146.97,6.77712346]
[1745490030140,6.77712346,147.01,146.96,6.77712346]
[1745490030341,6.77712346,146.99,146.94,6.77712346]
[1745490030539,6.77712346,146.98,146.94,6.77712346]
[1745490031747,6.77712346,146.99,146.95,6.77712346]
[1745490031944,6.8032,146.97,146.95,6.77712346]
[1745490034249,6.8037,146.96,146.95,6.77712346]
[1745490035151,13.6013,147.03,146.95,6.77712346]
[1745490035152,6.8035,146.97,146.95,6.77712346]
[1745490035553,6.8035,146.97,146.95,13.58112346]
[1745490035753,6.8031,146.98,146.95,13.58112346]
[1745490037554,6.8031,146.98,146.96,6.8037]
[1745490038855,6.8032,146.97,146.95,13.58102346]
[1745490041859,6.803,146.98,146.96,6.8037]
[1745490042060,6.77712346,147.0,146.95,6.77712346]
[1745490042359,6.8031,146.98,146.95,13.58092346]
[1745490042562,6.8031,146.98,146.95,6.77712346]
[1745490043659,6.8031,146.98,146.96,13.58062346]
[1745490044659,6.8025,146.99,146.97,6.8032]
[1745490048472,6.8025,146.99,146.96,13.58062346]
[1745490049067,6.8025,146.99,146.97,6.8031]
[1745490051672,6.8021,147.0,146.98,6.8028]
[1745490051974,6.8021,147.0,146.96,6.77712346]
[1745490052276,6.8024,146.99,146.97,6.803]
[1745490053878,6.8019,147.0,146.98,6.8026]
[1745490054175,6.8019,147.0,146.96,6.77712346]
[1745490054574,6.8019,147.0,146.98,6.8026]
[1745490055180,13.57882346,147.01,146.98,6.8026]
[1745490055381,6.77712346,147.02,146.97,6.77712346]
[1745490055779,6.8018,147.01,146.97,6.77712346]
[1745490055978,6.8018,147.01,146.99,6.8023]
[1745490056179,6.8018,147.01,146.97,6.77712346]
[1745490056577,6.8018,147.01,146.98,6.8026]
[1745490057480,6.8018,147.01,146.97,6.77712346]
[1745490058282,6.8018,147.01,146.98,6.8026]
[1745490058778,6.8019,147.0,146.98,6.8026]
[1745490059277,6.8019,147.0,146.98,13.57972346]
[1745490059479,6.8014,147.01,146.99,6.8021]
[1745490059876,6.77712346,147.02,146.98,6.77712346]
[1745490060182,6.8021,147.0,146.91,13.6119]
[1745490060382,6.8021,147.0,146.97,6.77712346]
[1745490060883,6.8021,147.0,146.98,6.8027]
[1745490061280,6.8016,147.01,146.98,13.57982346]
[1745490061481,6.77712346,147.03,146.99,6.8022]
[1745490061681,6.8013,147.02,146.98,6.77712346]
[1745490062075,6.8013,147.02,146.99,6.8019]
[1745490062282,6.8013,147.02,146.98,6.77712346]
[1745490063483,6.8013,147.02,146.99,6.8022]
[1745490063784,6.8015,147.01,146.99,6.8022]
[1745490064282,6.77712346,147.02,146.98,6.8025]
[1745490064682,6.8015,147.01,146.98,6.8025]
[1745490064884,6.77712346,147.02,146.98,6.8025]
[1745490065379,6.8018,147.01,146.98,6.8025]
[1745490065587,6.77712346,147.04,146.99,6.77712346]
[1745490065985,6.8011,147.02,146.99,6.77712346]
[1745490066385,6.8007,147.03,146.99,6.77712346]
[1745490066584,6.8007,147.03,147.0,6.8016]
[1745490066781,13.57782346,147.03,147.0,6.8016]
[1745490066984,6.801,147.02,147.0,6.8016]
[1745490067185,6.801,147.02,146.99,6.77712346]
[1745490068187,13.57782346,147.03,147.0,6.8018]
[1745490068385,6.77712346,147.03,146.99,6.77712346]
[1745490068688,6.77712346,147.05,146.99,6.77712346]
[1745490069183,6.8006,147.03,146.99,6.77712346]
[1745490069784,6.8006,147.03,147.0,6.8016]
[1745490070988,6.77712346,147.02,146.97,6.77712346]
[1745490071183,6.77712346,147.0,146.9,5.9774]
[1745490071385,6.77712346,147.0,146.95,6.77712346]
[1745490071587,6.8026,146.99,146.96,6.8035]
[1745490072089,13.57922346,147.0,146.97,6.8032]
[1745490072588,6.77712346,147.0,146.97,6.8032]
[1745490072989,6.8026,146.99,146.96,6.8035]
[1745490073391,6.8026,146.99,146.96,6.77712346]
[1745490073990,6.8026,146.99,146.97,6.8032]
[1745490075090,6.8026,146.99,146.96,13.58062346]
[1745490075490,6.8026,146.99,146.96,6.77712346]
[1745490076495,6.8026,146.99,146.97,6.803]
[1745490076793,6.8021,147.0,146.97,6.803]
[1745490078593,13.57872346,147.01,146.98,6.8027]
[1745490078790,6.77712346,147.02,146.98,6.8027]
[1745490078990,6.8021,147.0,146.97,13.58012346]
[1745490079284,6.8021,147.0,146.97,6.77712346]
[1745490079487,6.8021,147.0,146.98,6.8027]
[1745490079793,6.8026,146.99,146.96,6.77712346]
[1745490080089,6.8026,146.99,146.96,13.58052346]
[1745490080599,6.8028,146.98,146.96,13.58052346]
[1745490081100,6.77712346,147.0,146.97,6.803]
[1745490081496,13.57922346,147.0,146.97,6.803]
[1745490082300,6.77712346,146.98,146.93,6.77712346]
[1745490082802,6.8035,146.97,146.94,6.8044]
[1745490084000,6.803,146.98,146.95,13.58112346]
[1745490084396,6.803,146.98,146.95,6.77712346]
[1745490084891,6.803,146.98,146.96,13.58062346]
[1745490087603,6.803,146.98,146.96,6.8035]
[1745490089104,6.8033,146.97,146.93,6.77712346]
[1745490089603,6.8033,146.97,146.95,6.8041]
[1745490090504,6.803,146.98,146.95,6.8041]
[1745490090700,6.803,146.98,146.96,6.8037]
[1745490091199,6.8025,146.99,146.96,6.8037]
[1745490091402,13.5996,147.05,146.97,6.77712346]
[1745490091601,6.77712346,147.02,146.97,6.77712346]
[1745490092411,6.8021,147.0,146.97,13.58022346]
[1745490092704,6.77712346,147.0,146.96,6.77712346]
[1745490093004,6.77712346,146.99,146.95,6.77712346]
[1745490093204,6.77712346,146.98,146.9,5.9774]
[1745490093406,6.77712346,146.98,146.93,6.77712346]
[1745490093607,13.58022346,146.98,146.95,6.8038]
[1745490093802,6.77712346,146.96,146.92,6.77712346]
[1745490094004,6.77712346,146.96,146.91,6.77712346]
[1745490094203,6.8033,146.97,146.93,6.77712346]
[1745490094603,6.8033,146.97,146.94,6.8043]
[1745490095103,6.8033,146.97,146.93,6.77712346]
[1745490095404,6.8033,146.97,146.94,6.8045]
[1745490096003,6.8033,146.97,146.95,6.8042]
[1745490096210,6.77712346,146.98,146.95,6.8042]
[1745490096504,6.77712346,146.97,146.95,6.8042]
[1745490096705,13.58062346,146.97,146.94,6.8044]
[1745490097908,6.8038,146.96,146.94,6.8044]
[1745490098207,6.77712346,146.97,146.94,6.8044]
[1745490098698,6.77712346,146.97,146.95,6.8042]
[1745490098900,6.77712346,146.98,146.95,6.8042]
[1745490099306,13.58002346,146.98,146.95,6.8042]
[1745490099810,6.8029,146.98,146.95,6.8042]
[1745490100009,6.8029,146.98,146.93,6.77712346]
[1745490100203,6.8029,146.98,146.94,6.77712346]
[1745490101108,6.8029,146.98,146.95,6.8038]
[1745490102703,13.58002346,146.98,146.95,6.8038]
[1745490102909,6.8033,146.97,146.95,6.8038]
[1745490103109,6.77712346,146.98,146.94,6.8044]
[1745490103304,6.77712346,146.97,146.94,6.8044]
[1745490103509,13.58062346,146.97,146.94,6.8044]
[1745490104016,6.8037,146.96,146.94,6.8044]
[1745490106316,6.8035,146.97,146.94,6.8044]
[1745490106817,6.77712346,146.98,146.94,6.8044]
[1745490107016,6.8033,146.97,146.94,6.8044]
[1745490107418,6.8033,146.97,146.95,6.8041]
[1745490108218,6.8033,146.97,146.94,6.8044]
[1745490108415,6.8033,146.97,146.93,6.77712346]
[1745490108614,6.8038,146.96,146.93,6.77712346]
[1745490109319,6.8038,146.96,146.94,6.8044]
[1745490109719,6.8035,146.97,146.94,6.8044]
[1745490111421,6.8035,146.97,146.95,6.8042]
[1745490111721,6.8035,146.97,146.94,6.77712346]
[1745490112321,6.8037,146.96,146.94,13.58152346]
[1745490113121,6.8034,146.97,146.95,6.8042]
[1745490116824,13.58002346,146.98,146.96,6.8037]
[1745490117116,6.8029,146.98,146.96,6.8037]
[1745490118222,6.8029,146.98,146.95,6.8039]
[1745490119123,6.8029,146.98,146.96,6.8036]
[1745490119920,6.8036,146.97,146.94,6.77712346]
[1745490120125,13.58072346,146.97,146.93,6.77712346]
[1745490120325,6.77712346,147.01,146.95,6.77712346]
[1745490120523,6.77712346,147.02,146.98,6.8024]
[1745490120724,6.8017,147.01,146.98,13.57952346]
[1745490121325,6.8017,147.01,146.99,6.8023]
[1745490122026,6.77712346,147.04,147.0,6.77712346]
[1745490122325,6.77712346,147.03,146.98,6.77712346]
[1745490122826,6.8014,147.01,146.99,6.8021]
[1745490123021,6.77712346,147.0,146.96,6.77712346]
[1745490123326,13.57972346,146.99,146.96,6.8033]
[1745490124021,6.8026,146.99,146.96,6.8033]
[1745490124326,6.8026,146.99,146.97,6.8032]
[1745490125927,6.77712346,147.0,146.9,5.9774]
[1745490125928,6.77712346,146.98,146.93,6.77712346]
[1745490126225,6.8035,146.97,146.94,6.8044]
[1745490126830,13.58012346,146.98,146.95,6.804]
[1745490127222,6.803,146.98,146.95,6.804]
[1745490128322,20.42,147.05,146.97,6.77712346]
[1745490128529,6.77712346,147.0,146.96,6.77712346]
[1745490128829,13.57932346,147.0,146.97,6.803]
[1745490129626,6.8023,146.99,146.97,6.803]
[1745490129822,13.57942346,146.99,146.96,6.8035]
[1745490130127,6.77712346,146.99,146.96,6.8035]
[1745490130727,6.8029,146.98,146.96,6.8035]
[1745490130927,6.77712346,146.98,146.94,6.77712346]
[1745490131726,6.8035,146.97,146.94,13.58152346]
[1745490131920,6.8035,146.97,146.94,6.77712346]
[1745490133227,6.8035,146.97,146.95,6.8041]
[1745490139835,6.8038,146.96,146.93,6.77712346]
[1745490140334,13.58112346,146.96,146.93,6.8048]
[1745490140733,6.77712346,146.96,146.93,6.8048]
[1745490140934,6.8044,146.95,146.93,6.8048]
[1745490141335,6.77712346,146.97,146.94,6.8045]
[1745490141938,6.8039,146.96,146.94,6.8045]
[1745490143239,6.77712346,147.0,146.95,13.58092346]
[1745490143439,6.77712346,146.99,146.95,13.58092346]
[1745490143939,6.77712346,146.99,146.94,13.58152346]
[1745490144142,6.77712346,146.98,146.94,13.58152346]
[1745490144437,6.8036,146.97,146.94,13.58152346]
[1745490145539,6.8036,146.97,146.95,6.8042]
[1745490146039,6.803,146.98,146.94,6.77712346]
[1745490147041,6.803,146.98,146.96,6.8036]
[1745490150642,13.57962346,146.99,146.94,6.77712346]
[1745490151339,13.57962346,146.99,146.97,6.8032]
[1745490152544,6.8025,146.99,146.97,6.8032]
[1745490152947,13.57922346,147.0,146.94,6.77712346]
[1745490153245,6.77712346,147.0,146.94,6.77712346]
[1745490153545,6.8026,146.99,146.96,6.8033]
[1745490155046,6.77712346,146.99,146.96,6.8033]
[1745490155247,6.77712346,146.99,146.97,6.8032]
[1745490155450,13.57972346,146.99,146.97,6.8032]
[1745490157048,6.8026,146.99,146.97,6.8032]
[1745490158745,6.8021,147.0,146.97,6.8032]
[1745490158945,6.8021,147.0,146.98,6.8027]
[1745490159249,6.8021,147.0,146.97,6.77712346]
[1745490159650,6.8025,146.99,146.97,13.58012346]
[1745490161751,6.8025,146.99,146.97,6.803]
[1745490162949,24.4218,147.04,146.96,6.77712346]
[1745490163153,63.74648266,147.07,146.93,13.6095]
[1745490163350,70.52360612,147.07,147.01,6.77712346]
[1745490163555,6.8006,147.03,147.0,13.57872346]
[1745490163754,6.77712346,147.05,147.0,6.77712346]
[1745490163955,6.77712346,147.05,147.01,6.77712346]
[1745490164255,63.74648266,147.07,147.03,6.77712346]
[1745490164450,63.74648266,147.07,147.04,6.77712346]
[1745490165155,63.74648266,147.07,147.06,6.77712346]
[1745490165455,70.54508266,147.07,147.06,6.77712346]
[1745490165955,6.7991,147.06,147.05,6.77712346]
[1745490166456,70.54528266,147.07,147.05,6.77712346]
[1745490166757,6.7988,147.07,147.05,6.77712346]
[1745490167055,6.77712346,147.09,147.05,6.77712346]
[1745490168255,6.7991,147.06,147.05,6.77712346]
[1745490171258,6.7988,147.07,147.05,6.77712346]
[1745490171459,6.7988,147.07,147.06,6.77712346]
[1745490172360,15.5535,147.15,147.06,6.77712346]
[1745490172561,15.5535,147.15,147.08,6.77712346]
[1745490172761,6.7976,147.1,147.09,6.77712346]
[1745490174163,4.1191,147.14,147.09,6.77712346]
[1745490174365,10.89622346,147.14,147.1,6.77712346]
[1745490175064,6.7966,147.12,147.1,6.77712346]
[1745490175658,6.796,147.13,147.1,13.57402346]
[1745490176060,5.9401,147.19,147.12,6.77712346]
[1745490176259,6.7957,147.14,147.12,6.77712346]
[1745490176865,5.9401,147.19,147.12,6.77712346]
[1745490177064,6.77712346,147.18,147.12,6.77712346]
[1745490177266,6.77712346,147.18,147.14,6.77712346]
[1745490177462,6.7944,147.17,147.14,6.77712346]
[1745490177662,6.77712346,147.18,147.14,6.77712346]
[1745490178165,3.9353,147.19,147.15,6.77712346]
[1745490178366,10.71242346,147.19,147.15,6.77712346]
[1745490179165,3.9353,147.19,147.15,6.77712346]
[1745490179356,10.71242346,147.19,147.15,6.77712346]
[1745490179560,6.77712346,147.19,147.15,6.77712346]
[1745490179755,6.77712346,147.2,147.15,6.77712346]
[1745490180365,6.77712346,147.17,147.13,6.77712346]
[1745490180665,6.7952,147.15,147.13,6.77712346]
[1745490183266,6.77712346,147.19,147.14,6.77712346]
[1745490183467,6.77712346,147.2,147.15,6.77712346]
[1745490183868,6.7944,147.17,147.15,6.77712346]
[1745490184563,6.77712346,147.17,147.13,6.77712346]
[1745490184870,6.77712346,147.18,147.13,6.77712346]
[1745490185168,6.7947,147.16,147.14,6.77712346]
[1745490185366,6.7947,147.16,147.15,6.77712346]
[1745490186971,6.77712346,147.21,147.15,6.77712346]
[1745490187271,6.77712346,147.21,147.17,6.77712346]
[1745490187569,6.7938,147.18,147.16,6.77712346]
[1745490188169,6.7932,147.19,147.17,6.77712346]
[1745490188372,12.74522346,147.23,147.18,6.77712346]
[1745490189067,6.77712346,147.22,147.18,6.77712346]
[1745490189764,6.77712346,147.21,147.08,1.9985]
[1745490189966,6.77712346,147.22,147.17,6.77712346]
[1745490190172,6.7933,147.19,147.17,6.77712346]
[1745490190371,6.77712346,147.22,147.17,6.77712346]
[1745490191270,6.7932,147.19,147.17,6.77712346]
[1745490192374,6.7935,147.18,147.17,6.77712346]
[1745490192574,6.77712346,147.2,147.15,6.77712346]
[1745490192878,6.7939,147.18,147.15,13.57202346]
[1745490193175,6.77712346,147.2,147.15,13.57202346]
[1745490193371,6.7937,147.18,147.15,13.57202346]
[1745490193573,6.7937,147.18,147.16,6.77712346]
[1745490193970,6.7937,147.18,147.17,6.77712346]
[1745490194177,6.7933,147.19,147.17,6.77712346]
[1745490195181,20.42,147.26,147.18,6.77712346]
[1745490195379,20.42,147.26,147.19,6.77712346]
[1745490195579,6.77712346,147.24,147.19,6.77712346]
[1745490195779,6.77712346,147.23,147.11,13.5932]
[1745490195978,6.77712346,147.23,147.18,6.77712346]
[1745490196472,6.77712346,147.22,147.12,3.8987]
[1745490196678,6.77712346,147.2,147.16,6.77712346]
[1745490196879,6.77712346,147.2,147.15,6.77712346]
[1745490197178,6.7937,147.18,147.15,13.57202346]
[1745490197376,6.77712346,147.2,147.16,6.77712346]
[1745490197578,6.77712346,147.21,147.16,6.77712346]
[1745490197772,6.77712346,147.2,147.16,6.77712346]
[1745490198175,6.77712346,147.19,147.15,6.77712346]
[1745490198479,6.7938,147.18,147.15,13.57182346]
[1745490200175,20.42,147.24,147.14,6.77712346]
[1745490200378,6.77712346,147.18,147.14,6.77712346]
[1745490200578,6.7941,147.17,147.14,13.57222346]
[1745490202679,6.7941,147.17,147.14,6.7951]
[1745490209477,6.7945,147.16,147.14,6.7951]
[1745490210690,6.7945,147.16,147.13,13.57272346]
[1745490211889,6.7945,147.16,147.14,6.7953]
[1745490212188,6.7945,147.16,147.13,6.77712346]
[1745490212492,6.7945,147.16,147.13,13.57262346]
[1745490212689,6.7945,147.16,147.13,6.77712346]
[1745490213190,6.7945,147.16,147.13,13.57262346]
[1745490214191,6.7945,147.16,147.14,6.7953]
[1745490214886,6.77712346,147.15,147.03,13.6002]
[1745490215090,6.77712346,147.1,147.05,6.77712346]
[1745490215386,6.77712346,147.09,147.04,6.77712346]
[1745490215593,6.799,147.07,147.04,6.77712346]
[1745490215791,6.77712346,147.07,146.97,5.9928]
[1745490215991,6.77712346,147.07,147.02,6.77712346]
[1745490216193,6.7993,147.06,147.04,6.8]
[1745490216695,6.7988,147.07,147.04,6.8]
[1745490216895,6.77712346,147.08,147.04,6.8]
[1745490217291,13.57552346,147.08,147.04,6.8]
[1745490217491,6.77712346,147.1,147.05,13.57652346]
[1745490217793,6.7981,147.09,147.05,13.57652346]
[1745490218895,13.57522346,147.09,147.05,13.57652346]
[1745490219596,6.7982,147.08,147.05,6.7994]
[1745490219795,13.57532346,147.08,147.04,13.57702346]
[1745490219998,6.7982,147.08,147.04,6.77712346]
[1745490220394,13.57532346,147.08,147.04,6.77712346]
[1745490220601,13.57532346,147.08,147.05,6.7993]
[1745490221803,13.57532346,147.08,147.06,6.7991]
[1745490223003,6.77712346,147.08,147.06,6.7991]
[1745490223303,13.57502346,147.09,147.07,6.7986]
[1745490223502,13.57502346,147.09,147.05,6.77712346]
[1745490223703,13.57452346,147.1,147.05,6.77712346]
[1745490224202,13.57452346,147.1,147.07,6.7984]
[1745490224902,13.57402346,147.11,147.08,6.7979]
[1745490225501,6.7964,147.12,147.09,6.7975]
[1745490225803,6.77712346,147.13,147.08,6.77712346]
[1745490226004,13.57322346,147.13,147.1,6.7971]
[1745490227605,13.57322346,147.13,147.09,6.7975]
[1745490227902,13.57352346,147.12,147.09,6.7975]
[1745490228906,6.77712346,147.12,147.08,6.77712346]
[1745490229104,6.77712346,147.12,147.07,6.77712346]
[1745490229303,6.77712346,147.16,147.11,6.77712346]
[1745490229701,6.77712346,147.17,147.12,6.7961]
[1745490230005,6.795,147.15,147.12,13.57322346]
[1745490232709,6.77712346,147.19,147.14,6.77712346]
[1745490233208,6.7944,147.17,147.14,13.57232346]
[1745490233609,6.77712346,147.19,147.14,6.77712346]
[1745490233814,6.7939,147.18,147.15,6.7949]
[1745490233999,10.74532346,147.2,147.15,6.77712346]
[1745490234204,10.74532346,147.2,147.16,6.77712346]
[1745490234409,6.7933,147.19,147.16,6.77712346]
[1745490234705,6.77712346,147.18,147.15,13.57162346]
[1745490234903,6.77712346,147.18,147.15,6.7945]
[1745490235406,13.57042346,147.19,147.15,6.7945]
[1745490236013,13.57042346,147.19,147.16,6.7944]
[1745490236209,6.7933,147.19,147.16,6.7944]
[1745490236511,6.7933,147.19,147.15,13.57172346]
[1745490236812,6.7933,147.19,147.16,6.77712346]
[1745490237312,6.7928,147.2,147.16,6.77712346]
[1745490237912,6.77712346,147.22,147.17,6.77712346]
[1745490238112,6.77712346,147.22,147.18,6.77712346]
[1745490238413,10.56272346,147.23,147.18,6.77712346]
[1745490238712,6.7919,147.22,147.19,6.7931]
[1745490239914,24.2056,147.23,147.09,1.9819]
[1745490240117,6.77712346,147.15,147.09,1.9819]
[1745490240408,6.7958,147.14,147.09,1.9819]
[1745490240616,6.77712346,147.13,147.08,17.62302346]
[1745490240917,13.57342346,147.13,147.08,8.81292346]
[1745490241312,6.77712346,147.1,146.99,3.9875]
[1745490241515,6.77712346,147.1,147.06,6.77712346]
[1745490241706,6.77712346,147.1,147.05,6.7995]
[1745490241912,6.77712346,147.09,147.05,6.77712346]
[1745490242715,6.77712346,147.09,147.05,13.57662346]
[1745490242914,6.77712346,147.09,147.05,6.77712346]
[1745490243218,6.7985,147.08,147.04,6.77712346]
[1745490243515,6.7985,147.08,147.02,10.51944438]
[1745490244017,6.7985,147.08,147.04,6.8]
[1745490244812,6.7987,147.07,147.03,6.8003]
[1745490246117,6.7987,147.07,147.04,6.8]
[1745490247418,10.51944438,147.15,147.06,10.51944438]
[1745490247919,10.51944438,147.11,147.02,10.51944438]
[1745490248418,6.7992,147.06,147.03,6.8001]
[1745490249418,6.7996,147.05,147.02,17.32024438]
[1745490250220,6.7992,147.06,147.03,6.8005]
[1745490251418,6.7992,147.06,147.04,6.8]
[1745490252421,6.7989,147.07,147.04,6.8]
[1745490253218,6.7981,147.09,147.04,10.51944438]
[1745490253419,12.56414438,147.13,147.04,10.51944438]
[1745490253821,6.798,147.09,147.04,10.51944438]
[1745490254511,6.798,147.09,147.06,6.7988]
[1745490255319,6.7982,147.08,147.06,6.7988]
[1745490255529,12.56414438,147.13,147.02,10.51944438]
[1745490255729,10.51944438,147.11,147.02,10.51944438]
[1745490255925,1.9008,147.1,147.03,6.8]
[1745490256530,6.799,147.07,147.03,6.8]
[1745490256727,6.799,147.07,147.04,6.8]
[1745490257027,1.9008,147.1,147.02,10.51944438]
[1745490257629,6.7987,147.07,147.02,10.51944438]
[1745490259529,6.7987,147.07,147.04,6.7997]
[1745490261328,6.7987,147.07,147.05,6.7995]
[1745490264128,6.7984,147.08,147.05,6.7995]
[1745490264521,6.7974,147.1,147.04,10.51944438]
[1745490265219,6.7974,147.1,147.07,6.72982535]
[1745490265627,6.7978,147.09,147.07,13.52812535]
[1745490266026,6.7978,147.09,147.07,6.72982535]
[1745490267232,6.7978,147.09,147.07,13.52832535]
[1745490269533,6.7975,147.1,147.07,13.52832535]
[1745490271330,6.72982535,147.12,147.07,13.52832535]
[1745490271331,6.7978,147.09,147.07,13.52832535]
[1745490273338,6.7975,147.1,147.08,6.798]
[1745490273838,6.7975,147.1,147.07,13.52832535]
[1745490274740,6.7978,147.09,147.07,13.52832535]
[1745490275138,6.7978,147.09,147.07,6.72982535]
[1745490275941,6.7978,147.09,147.07,13.52832535]
[1745490277341,8.66652535,147.14,147.07,6.72982535]
[1745490277642,8.66652535,147.14,147.09,6.72982535]
[1745490277836,6.7968,147.11,147.09,6.72982535]
[1745490280849,6.7972,147.1,147.08,6.7979]
[1745490281246,6.7972,147.1,147.07,13.52822535]
[1745490281650,6.7978,147.09,147.07,13.52822535]
[1745490283651,6.7975,147.1,147.07,13.52822535]
[1745490284352,6.7975,147.1,147.08,6.7981]
[1745490284648,6.7968,147.11,147.07,6.72982535]
[1745490284950,8.66652535,147.14,147.09,6.72982535]
[1745490285146,6.797,147.11,147.09,6.72982535]
[1745490285344,1.9367,147.14,147.09,6.72982535]
[1745490285345,1.9291,147.15,147.09,6.72982535]
[1745490285552,8.65892535,147.15,147.1,6.72982535]
[1745490285957,6.7968,147.11,147.1,6.72982535]
[1745490286453,6.7968,147.11,147.09,6.72982535]
[1745490287853,6.7968,147.11,147.09,13.52752535]
[1745490288153,6.7965,147.12,147.09,13.52752535]
[1745490288354,6.72982535,147.13,147.09,6.72982535]
[1745490288556,6.72982535,147.13,147.08,13.52772535]
[1745490288852,6.797,147.11,147.08,13.52772535]
[1745490289655,6.72982535,147.13,147.08,13.52772535]
[1745490289956,6.72982535,147.13,147.08,6.72982535]